[Event "Titled Tuesday Blitz January 10 Early 2023"]
[White "Sai Han Thiha"]
[Black "Ioannidis, Evgenios"]
[WhiteFideId "13012290"]
[BlackFideId "4229274"]
[WhiteElo "2070"]
[BlackElo "2467"]
[Result "0-1"]
[Round "02"]
[TimeControl "180+2"]
[Date "2023.01.10"]
[WhiteClock "0:00:01"]
[BlackClock "0:00:22"]

1. d4 {[%clk 0:03:00]}  Nf6 {[%clk 0:02:59]} 2. c4 {[%clk 0:03:01]}  e6 {[%clk 0:02:59]} 3. Nf3 {[%clk 0:03:02]}  d5 {[%clk 0:02:59]} 4. Nc3 {[%clk 0:03:02]}  c6 {[%clk 0:02:59]} 5. Be3 {[%clk 0:03:00]}  dxc4 {[%clk 0:02:56]} 6. a4 {[%clk 0:02:55]}  Bb4 {[%clk 0:02:54]} 7. Bd2 {[%clk 0:02:54]}  Qa5 {[%clk 0:02:11]} 8. e3 {[%clk 0:02:44]}  Nd5 {[%clk 0:02:11]} 9. Qc1 {[%clk 0:02:31]}  Nb6 {[%clk 0:01:53]} 10. Ne5 {[%clk 0:02:28]}  c5 {[%clk 0:01:38]} 11. Nb5 {[%clk 0:02:07]}  Na6 {[%clk 0:00:39]} 12. Nd6+ {[%clk 0:01:37]}  Ke7 {[%clk 0:00:39]} 13. Ndxc4 {[%clk 0:01:37]}  Bxd2+ {[%clk 0:00:38]} 14. Qxd2 {[%clk 0:01:34]}  Qxd2+ {[%clk 0:00:38]} 15. Kxd2 {[%clk 0:01:34]}  cxd4 {[%clk 0:00:32]} 16. exd4 {[%clk 0:01:32]}  Rd8 {[%clk 0:00:33]} 17. Nxb6 {[%clk 0:01:07]}  axb6 {[%clk 0:00:33]} 18. Bxa6 {[%clk 0:00:59]}  Rxa6 {[%clk 0:00:28]} 19. Ke3 {[%clk 0:00:59]}  f6 {[%clk 0:00:26]} 20. Nd3 {[%clk 0:00:44]}  Bd7 {[%clk 0:00:26]} 21. b3 {[%clk 0:00:44]}  Rda8 {[%clk 0:00:20]} 22. Rac1 {[%clk 0:00:41]}  b5 {[%clk 0:00:21]} 23. Rc7 {[%clk 0:00:18]}  Rc6 {[%clk 0:00:18]} 24. Rxc6 {[%clk 0:00:15]}  Bxc6 {[%clk 0:00:19]} 25. axb5 {[%clk 0:00:11]}  Bxb5 {[%clk 0:00:20]} 26. Nc5 {[%clk 0:00:10]}  b6 {[%clk 0:00:20]} 27. Na4 {[%clk 0:00:03]}  Bxa4 {[%clk 0:00:19]} 28. bxa4 {[%clk 0:00:04]}  Rxa4 {[%clk 0:00:20]} 29. Rb1 {[%clk 0:00:04]}  Ra6 {[%clk 0:00:20]} 30. Ke4 {[%clk 0:00:03]}  Kd6 {[%clk 0:00:20]} 31. g4 {[%clk 0:00:03]}  g6 {[%clk 0:00:20]} 32. Rb2 {[%clk 0:00:02]}  Kc6 {[%clk 0:00:20]} 33. Rc2+ {[%clk 0:00:01]}  Kd7 {[%clk 0:00:20]} 34. Rb2 {[%clk 0:00:02]}  Kd6 {[%clk 0:00:20]} 35. f4 {[%clk 0:00:02]}  f5+ {[%clk 0:00:19]} 36. gxf5 {[%clk 0:00:02]}  exf5+ {[%clk 0:00:20]} 37. Ke3 {[%clk 0:00:01]}  Ra3+ {[%clk 0:00:21]} 38. Kd2 {[%clk 0:00:01]}  Kd5 {[%clk 0:00:21]} 39. Rxb6 {[%clk 0:00:01]}  Kxd4 {[%clk 0:00:21]} 40. Rb2 {[%clk 0:00:01]}  Ke4 {[%clk 0:00:21]} 41. Ke1 {[%clk 0:00:01]}  Kxf4 {[%clk 0:00:21]} 42. Kf1 {[%clk 0:00:02]}  Kg4 {[%clk 0:00:21]} 43. Kg2 {[%clk 0:00:03]}  g5 {[%clk 0:00:21]} 44. Rc2 {[%clk 0:00:01]}  f4 {[%clk 0:00:20]} 45. Rb2 {[%clk 0:00:02]}  h5 {[%clk 0:00:20]} 46. Rc2 {[%clk 0:00:02]}  h4 {[%clk 0:00:21]} 47. Rb2 {[%clk 0:00:03]}  Re3 {[%clk 0:00:20]} 48. Rc2 {[%clk 0:00:02]}  Re2+ {[%clk 0:00:20]} 49. Rxe2 {[%clk 0:00:02]}  f3+ {[%clk 0:00:21]} 50. Kf2 {[%clk 0:00:02]}  fxe2 {[%clk 0:00:21]} 51. Kg2 {[%clk 0:00:01]}  e1=Q {[%clk 0:00:20]} 52. h3+ {[%clk 0:00:01]}  Kf4 {[%clk 0:00:21]} 53. Kh2 {[%clk 0:00:01]}  Qd2+ {[%clk 0:00:21]} 54. Kg1 {[%clk 0:00:01]}  Kf3 {[%clk 0:00:22]} 0-1


[Site "https://www.chess.com"]

[Event "Titled Tuesday Blitz January 10 Early 2023"]
[White "Kuznecovs, Nikita"]
[Black "Horvath, Dominik"]
[WhiteFideId "11604557"]
[BlackFideId "1642561"]
[WhiteElo "2287"]
[BlackElo "2523"]
[Result "0-1"]
[Round "02"]
[TimeControl "180+2"]
[Date "2023.01.10"]
[WhiteClock "0:00:14"]
[BlackClock "0:01:04"]

1. Nf3 {[%clk 0:02:51]}  g6 {[%clk 0:02:57]} 2. g3 {[%clk 0:02:52]}  Bg7 {[%clk 0:02:57]} 3. Bg2 {[%clk 0:02:52]}  d5 {[%clk 0:02:57]} 4. O-O {[%clk 0:02:52]}  e5 {[%clk 0:02:57]} 5. c4 {[%clk 0:02:50]}  dxc4 {[%clk 0:02:57]} 6. Qa4+ {[%clk 0:02:50]}  Nc6 {[%clk 0:02:57]} 7. Qxc4 {[%clk 0:02:49]}  Nge7 {[%clk 0:02:56]} 8. d3 {[%clk 0:02:48]}  O-O {[%clk 0:02:56]} 9. Nbd2 {[%clk 0:02:36]}  Be6 {[%clk 0:02:56]} 10. Qc2 {[%clk 0:02:36]}  h6 {[%clk 0:02:56]} 11. a3 {[%clk 0:02:33]}  a5 {[%clk 0:02:56]} 12. Ne4 {[%clk 0:02:30]}  b6 {[%clk 0:02:51]} 13. Rd1 {[%clk 0:02:23]}  Rc8 {[%clk 0:02:51]} 14. e3 {[%clk 0:02:19]}  f5 {[%clk 0:02:51]} 15. Nc3 {[%clk 0:02:19]}  Qe8 {[%clk 0:02:39]} 16. Rb1 {[%clk 0:02:08]}  Qf7 {[%clk 0:02:38]} 17. b4 {[%clk 0:02:07]}  axb4 {[%clk 0:02:36]} 18. axb4 {[%clk 0:02:07]}  Rfd8 {[%clk 0:02:36]} 19. b5 {[%clk 0:02:04]}  Na5 {[%clk 0:02:35]} 20. Ba3 {[%clk 0:01:36]}  Nd5 {[%clk 0:02:26]} 21. Ne2 {[%clk 0:01:30]}  c5 {[%clk 0:02:21]} 22. e4 {[%clk 0:01:09]}  Nb4 {[%clk 0:02:17]} 23. Bxb4 {[%clk 0:01:09]}  cxb4 {[%clk 0:02:18]} 24. Qb2 {[%clk 0:01:08]}  b3 {[%clk 0:02:18]} 25. Rbc1 {[%clk 0:00:52]}  Rc2 {[%clk 0:02:16]} 26. Rxc2 {[%clk 0:00:50]}  bxc2 {[%clk 0:02:17]} 27. Rd2 {[%clk 0:00:50]}  Bb3 {[%clk 0:01:49]} 28. Nxe5 {[%clk 0:00:30]}  Qc7 {[%clk 0:01:33]} 29. f4 {[%clk 0:00:29]}  Qc5+ {[%clk 0:01:27]} 30. Kh1 {[%clk 0:00:27]}  Qe3 {[%clk 0:01:24]} 31. Qc1 {[%clk 0:00:25]}  Bxe5 {[%clk 0:01:23]} 32. fxe5 {[%clk 0:00:20]}  Rxd3 {[%clk 0:01:23]} 33. Rxd3 {[%clk 0:00:18]}  Qxd3 {[%clk 0:01:23]} 34. Bf3 {[%clk 0:00:16]}  fxe4 {[%clk 0:01:20]} 35. Bg4 {[%clk 0:00:15]}  h5 {[%clk 0:01:12]} 36. Qg5 {[%clk 0:00:14]}  e3 {[%clk 0:01:07]} 37. Bxh5 {[%clk 0:00:14]}  Bd5+ {[%clk 0:01:04]} 38. Kg1 {[%clk 0:00:14]}  Qd1# {[%clk 0:01:04]} 0-1


[Site "https://www.chess.com"]

[Event "Titled Tuesday Blitz January 10 Early 2023"]
[White "Orozbaev, Eldiar"]
[Black "Foerster-Yialamas, Lucas"]
[WhiteFideId "13802240"]
[BlackFideId "30901774"]
[WhiteElo "2235"]
[BlackElo "2151"]
[Result "1-0"]
[Round "02"]
[TimeControl "180+2"]
[Date "2023.01.10"]
[WhiteClock "0:01:15"]
[BlackClock "0:01:24"]

1. e4 {[%clk 0:02:50]}  e5 {[%clk 0:02:59]} 2. Nf3 {[%clk 0:02:49]}  Nc6 {[%clk 0:03:00]} 3. d4 {[%clk 0:02:50]}  exd4 {[%clk 0:02:59]} 4. c3 {[%clk 0:02:49]}  dxc3 {[%clk 0:02:59]} 5. Bc4 {[%clk 0:02:49]}  cxb2 {[%clk 0:02:56]} 6. Bxb2 {[%clk 0:02:50]}  d5 {[%clk 0:02:56]} 7. exd5 {[%clk 0:02:44]}  Na5 {[%clk 0:02:53]} 8. O-O {[%clk 0:02:32]}  Be7 {[%clk 0:02:36]} 9. Bxg7 {[%clk 0:02:21]}  Nxc4 {[%clk 0:02:23]} 10. Bxh8 {[%clk 0:02:20]}  Bf6 {[%clk 0:02:20]} 11. Bxf6 {[%clk 0:02:15]}  Qxf6 {[%clk 0:02:21]} 12. Qe2+ {[%clk 0:02:10]}  Kf8 {[%clk 0:02:16]} 13. Qxc4 {[%clk 0:02:06]}  Qxa1 {[%clk 0:02:15]} 14. Qb4+ {[%clk 0:02:06]}  Kg7 {[%clk 0:02:02]} 15. Nc3 {[%clk 0:02:04]}  c5 {[%clk 0:02:01]} 16. dxc6 {[%clk 0:02:02]}  Qxf1+ {[%clk 0:01:57]} 17. Kxf1 {[%clk 0:02:02]}  bxc6 {[%clk 0:01:58]} 18. Qd4+ {[%clk 0:02:01]}  f6 {[%clk 0:01:55]} 19. Ne4 {[%clk 0:01:47]}  Ba6+ {[%clk 0:01:48]} 20. Kg1 {[%clk 0:01:46]}  Re8 {[%clk 0:01:43]} 21. Qxa7+ {[%clk 0:01:42]}  Re7 {[%clk 0:01:41]} 22. Qxa6 {[%clk 0:01:42]}  Rxe4 {[%clk 0:01:41]} 23. Qxc6 {[%clk 0:01:41]}  Re7 {[%clk 0:01:39]} 24. h4 {[%clk 0:01:29]}  f5 {[%clk 0:01:36]} 25. h5 {[%clk 0:01:25]}  Nf6 {[%clk 0:01:33]} 26. h6+ {[%clk 0:01:25]}  Kg6 {[%clk 0:01:33]} 27. Nh4+ {[%clk 0:01:24]}  Kg5 {[%clk 0:01:31]} 28. f4+ {[%clk 0:01:21]}  Kxf4 {[%clk 0:01:24]} 29. Qxf6 {[%clk 0:01:18]}  Re5 {[%clk 0:01:22]} 30. Qxe5+ {[%clk 0:01:15]}  Kxe5 {[%clk 0:01:23]} 31. Nxf5 {[%clk 0:01:15]}  Kxf5 {[%clk 0:01:23]} 32. a4 {[%clk 0:01:14]}  Ke4 {[%clk 0:01:24]} 33. a5 {[%clk 0:01:14]}  Kd5 {[%clk 0:01:24]} 34. g4 {[%clk 0:01:15]} 1-0


[Site "https://www.chess.com"]

[Event "Titled Tuesday Blitz January 10 Early 2023"]
[White "Marcziter, Dmitrii"]
[Black "Kosteniuk, Alexandra"]
[WhiteFideId "13900765"]
[BlackFideId "4128125"]
[WhiteElo "2234"]
[BlackElo "2535"]
[Result "0-1"]
[Round "02"]
[TimeControl "180+2"]
[Date "2023.01.10"]
[WhiteClock "0:00:22"]
[BlackClock "0:00:21"]

1. d4 {[%clk 0:03:00]}  f5 {[%clk 0:02:59]} 2. g3 {[%clk 0:03:00]}  Nf6 {[%clk 0:02:59]} 3. Bg2 {[%clk 0:03:00]}  g6 {[%clk 0:03:00]} 4. Nh3 {[%clk 0:03:00]}  Bg7 {[%clk 0:03:00]} 5. Nf4 {[%clk 0:02:59]}  Nc6 {[%clk 0:02:57]} 6. d5 {[%clk 0:02:57]}  Ne5 {[%clk 0:02:56]} 7. h4 {[%clk 0:02:55]}  h6 {[%clk 0:02:52]} 8. Nc3 {[%clk 0:02:48]}  d6 {[%clk 0:02:42]} 9. e4 {[%clk 0:02:41]}  fxe4 {[%clk 0:02:36]} 10. Nxe4 {[%clk 0:02:40]}  O-O {[%clk 0:02:33]} 11. Nxf6+ {[%clk 0:02:37]}  Rxf6 {[%clk 0:02:32]} 12. Be3 {[%clk 0:02:34]}  Bg4 {[%clk 0:02:30]} 13. f3 {[%clk 0:02:28]}  Bd7 {[%clk 0:02:17]} 14. O-O {[%clk 0:02:27]}  Qf8 {[%clk 0:02:09]} 15. Qe2 {[%clk 0:02:12]}  Qf7 {[%clk 0:02:09]} 16. Rad1 {[%clk 0:02:06]}  Rf8 {[%clk 0:02:08]} 17. Bd4 {[%clk 0:02:04]}  Rxf4 {[%clk 0:01:58]} 18. gxf4 {[%clk 0:02:04]}  Qxf4 {[%clk 0:01:59]} 19. Qe4 {[%clk 0:02:00]}  Qf7 {[%clk 0:01:53]} 20. f4 {[%clk 0:01:57]}  Bf5 {[%clk 0:01:51]} 21. Qe2 {[%clk 0:01:52]}  Bg4 {[%clk 0:01:45]} 22. Qe4 {[%clk 0:01:42]}  Nd7 {[%clk 0:01:29]} 23. Bxg7 {[%clk 0:01:40]}  Qxg7 {[%clk 0:01:30]} 24. Rb1 {[%clk 0:01:38]}  Qf6 {[%clk 0:01:21]} 25. Rbe1 {[%clk 0:01:30]}  Rf7 {[%clk 0:01:20]} 26. Qb4 {[%clk 0:01:21]}  Nc5 {[%clk 0:01:04]} 27. Re3 {[%clk 0:01:05]}  Qxh4 {[%clk 0:01:01]} 28. Rfe1 {[%clk 0:01:04]}  Bd7 {[%clk 0:00:53]} 29. Rf1 {[%clk 0:00:49]}  g5 {[%clk 0:00:44]} 30. Ref3 {[%clk 0:00:46]}  g4 {[%clk 0:00:40]} 31. f5 {[%clk 0:00:46]}  h5 {[%clk 0:00:35]} 32. Qd4 {[%clk 0:00:37]}  Qf6 {[%clk 0:00:33]} 33. Qxf6 {[%clk 0:00:35]}  Rxf6 {[%clk 0:00:34]} 34. Rf4 {[%clk 0:00:34]}  a5 {[%clk 0:00:33]} 35. b3 {[%clk 0:00:34]}  Kg7 {[%clk 0:00:32]} 36. Re1 {[%clk 0:00:34]}  Kf8 {[%clk 0:00:32]} 37. Be4 {[%clk 0:00:32]}  Nxe4 {[%clk 0:00:29]} 38. Rfxe4 {[%clk 0:00:32]}  Rf7 {[%clk 0:00:30]} 39. Rc4 {[%clk 0:00:28]}  c6 {[%clk 0:00:29]} 40. dxc6 {[%clk 0:00:28]}  bxc6 {[%clk 0:00:29]} 41. Rf1 {[%clk 0:00:26]}  c5 {[%clk 0:00:25]} 42. Rcf4 {[%clk 0:00:23]}  Rf6 {[%clk 0:00:25]} 43. c4 {[%clk 0:00:23]}  Kg7 {[%clk 0:00:24]} 44. Kg2 {[%clk 0:00:23]}  Kh6 {[%clk 0:00:24]} 45. Re4 {[%clk 0:00:23]}  Bc6 {[%clk 0:00:21]} 46. Re1 {[%clk 0:00:22]}  Rxf5 {[%clk 0:00:21]} 47. Kg3 {[%clk 0:00:23]}  Rf3+ {[%clk 0:00:20]} 48. Kh2 {[%clk 0:00:23]}  Bxe4 {[%clk 0:00:20]} 49. Rxe4 {[%clk 0:00:22]}  e5 {[%clk 0:00:21]} 50. Re2 {[%clk 0:00:20]}  Kg5 {[%clk 0:00:21]} 51. Rd2 {[%clk 0:00:21]}  Rf6 {[%clk 0:00:21]} 52. Kg3 {[%clk 0:00:21]}  h4+ {[%clk 0:00:21]} 53. Kg2 {[%clk 0:00:21]}  h3+ {[%clk 0:00:21]} 54. Kh2 {[%clk 0:00:22]}  Kh4 {[%clk 0:00:21]} 55. Re2 {[%clk 0:00:21]}  Rf2+ {[%clk 0:00:21]} 56. Kg1 {[%clk 0:00:22]}  Rxe2 {[%clk 0:00:21]} 0-1


[Site "https://www.chess.com"]

[Event "Titled Tuesday Blitz January 10 Early 2023"]
[White "De Souza, Cristiano Gomes"]
[Black "Rakhmatullaev, Almas"]
[WhiteFideId "2151758"]
[BlackFideId "14205793"]
[WhiteElo "2018"]
[BlackElo "2275"]
[Result "0-1"]
[Round "02"]
[TimeControl "180+2"]
[Date "2023.01.10"]
[WhiteClock "0:00:31"]
[BlackClock "0:00:19"]

1. d4 {[%clk 0:03:00]}  Nf6 {[%clk 0:02:59]} 2. c4 {[%clk 0:02:59]}  e6 {[%clk 0:03:00]} 3. Nf3 {[%clk 0:02:57]}  d5 {[%clk 0:03:01]} 4. Nc3 {[%clk 0:02:56]}  a6 {[%clk 0:02:59]} 5. Bg5 {[%clk 0:02:54]}  Be7 {[%clk 0:02:58]} 6. e3 {[%clk 0:02:54]}  h6 {[%clk 0:02:54]} 7. Bh4 {[%clk 0:02:52]}  O-O {[%clk 0:02:53]} 8. c5 {[%clk 0:02:51]}  b6 {[%clk 0:02:46]} 9. b4 {[%clk 0:02:50]}  a5 {[%clk 0:02:36]} 10. a3 {[%clk 0:02:47]}  axb4 {[%clk 0:02:26]} 11. axb4 {[%clk 0:02:46]}  Rxa1 {[%clk 0:02:27]} 12. Qxa1 {[%clk 0:02:44]}  Nc6 {[%clk 0:02:28]} 13. b5 {[%clk 0:02:33]}  Nb4 {[%clk 0:02:28]} 14. Qb2 {[%clk 0:02:24]}  bxc5 {[%clk 0:02:28]} 15. Bxf6 {[%clk 0:02:23]}  gxf6 {[%clk 0:02:14]} 16. Be2 {[%clk 0:02:14]}  cxd4 {[%clk 0:02:05]} 17. Nxd4 {[%clk 0:02:13]}  e5 {[%clk 0:01:57]} 18. Nc6 {[%clk 0:02:11]}  Nxc6 {[%clk 0:01:55]} 19. bxc6 {[%clk 0:02:12]}  d4 {[%clk 0:01:49]} 20. exd4 {[%clk 0:02:12]}  exd4 {[%clk 0:01:50]} 21. Ne4 {[%clk 0:02:01]}  d3 {[%clk 0:01:43]} 22. Bf3 {[%clk 0:01:57]}  f5 {[%clk 0:01:34]} 23. Nd2 {[%clk 0:01:49]}  Bf6 {[%clk 0:01:32]} 24. Qb5 {[%clk 0:01:41]}  Re8+ {[%clk 0:01:31]} 25. Kd1 {[%clk 0:01:41]}  Qd4 {[%clk 0:01:25]} 26. Re1 {[%clk 0:01:31]}  Be6 {[%clk 0:01:00]} 27. Re3 {[%clk 0:01:24]}  Rd8 {[%clk 0:00:34]} 28. Qa5 {[%clk 0:00:55]}  Bg5 {[%clk 0:00:20]} 29. Re1 {[%clk 0:00:31]}  Qb2 {[%clk 0:00:19]} 0-1


[Site "https://www.chess.com"]

[Event "Titled Tuesday Blitz January 10 Early 2023"]
[White "Boyer, Mahel"]
[Black "Sala, Giulia"]
[WhiteFideId "45102422"]
[BlackFideId "2840451"]
[WhiteElo "2489"]
[BlackElo "1998"]
[Result "1-0"]
[Round "02"]
[TimeControl "180+2"]
[Date "2023.01.10"]
[WhiteClock "0:01:23"]
[BlackClock "0:00:22"]

1. e4 {[%clk 0:03:00]}  c6 {[%clk 0:02:59]} 2. Nf3 {[%clk 0:02:57]}  d5 {[%clk 0:02:58]} 3. Nc3 {[%clk 0:02:58]}  g6 {[%clk 0:02:56]} 4. Qe2 {[%clk 0:02:49]}  Bg7 {[%clk 0:02:55]} 5. exd5 {[%clk 0:02:50]}  cxd5 {[%clk 0:02:31]} 6. Qb5+ {[%clk 0:02:49]}  Nc6 {[%clk 0:02:25]} 7. Qxd5 {[%clk 0:02:49]}  Nf6 {[%clk 0:02:25]} 8. Qxd8+ {[%clk 0:02:49]}  Kxd8 {[%clk 0:02:26]} 9. Bc4 {[%clk 0:02:47]}  Bf5 {[%clk 0:02:23]} 10. d3 {[%clk 0:02:46]}  e6 {[%clk 0:02:21]} 11. a3 {[%clk 0:02:46]}  a6 {[%clk 0:02:19]} 12. O-O {[%clk 0:02:43]}  Kc7 {[%clk 0:02:19]} 13. Bf4+ {[%clk 0:02:43]}  Kd7 {[%clk 0:02:16]} 14. Na4 {[%clk 0:02:43]}  Rad8 {[%clk 0:02:11]} 15. h3 {[%clk 0:02:30]}  b5 {[%clk 0:02:06]} 16. Nc5+ {[%clk 0:02:30]}  Kc8 {[%clk 0:02:03]} 17. Bb3 {[%clk 0:02:31]}  Nd5 {[%clk 0:01:57]} 18. Bg5 {[%clk 0:02:32]}  f6 {[%clk 0:01:56]} 19. Bd2 {[%clk 0:02:21]}  e5 {[%clk 0:01:51]} 20. Nxa6 {[%clk 0:02:20]}  Kb7 {[%clk 0:01:49]} 21. Nb4 {[%clk 0:02:19]}  Ndxb4 {[%clk 0:01:45]} 22. axb4 {[%clk 0:02:19]}  e4 {[%clk 0:01:43]} 23. dxe4 {[%clk 0:02:15]}  Bxe4 {[%clk 0:01:44]} 24. Bc3 {[%clk 0:02:13]}  Rhe8 {[%clk 0:01:39]} 25. Rfe1 {[%clk 0:02:11]}  Bxf3 {[%clk 0:01:32]} 26. gxf3 {[%clk 0:02:08]}  Ne5 {[%clk 0:01:32]} 27. Kg2 {[%clk 0:02:04]}  Bh6 {[%clk 0:01:31]} 28. Red1 {[%clk 0:02:01]}  Nc4 {[%clk 0:01:20]} 29. Bxf6 {[%clk 0:01:50]}  Rxd1 {[%clk 0:01:08]} 30. Rxd1 {[%clk 0:01:51]}  Nd2 {[%clk 0:01:08]} 31. Bd5+ {[%clk 0:01:48]}  Kb8 {[%clk 0:01:05]} 32. Bc3 {[%clk 0:01:49]}  Re2 {[%clk 0:01:00]} 33. Bc6 {[%clk 0:01:44]}  Be3 {[%clk 0:00:41]} 34. Rxd2 {[%clk 0:01:38]}  Bxd2 {[%clk 0:00:38]} 35. Bxb5 {[%clk 0:01:37]}  Bxc3 {[%clk 0:00:36]} 36. Bxe2 {[%clk 0:01:34]}  Bxb2 {[%clk 0:00:35]} 37. Bd3 {[%clk 0:01:34]}  Bc3 {[%clk 0:00:33]} 38. b5 {[%clk 0:01:33]}  Kc7 {[%clk 0:00:34]} 39. f4 {[%clk 0:01:31]}  Bd4 {[%clk 0:00:26]} 40. Kg3 {[%clk 0:01:27]}  Kd6 {[%clk 0:00:26]} 41. f3 {[%clk 0:01:27]}  Ke6 {[%clk 0:00:26]} 42. Kg4 {[%clk 0:01:27]}  Kf6 {[%clk 0:00:26]} 43. f5 {[%clk 0:01:26]}  Be5 {[%clk 0:00:23]} 44. fxg6 {[%clk 0:01:24]}  hxg6 {[%clk 0:00:24]} 45. f4 {[%clk 0:01:25]}  Bd4 {[%clk 0:00:24]} 46. f5 {[%clk 0:01:25]}  g5 {[%clk 0:00:22]} 47. c4 {[%clk 0:01:21]}  Bc5 {[%clk 0:00:19]} 48. Be4 {[%clk 0:01:17]}  Bf2 {[%clk 0:00:18]} 49. Bd5 {[%clk 0:01:18]}  Bd4 {[%clk 0:00:18]} 50. Be6 {[%clk 0:01:19]}  Bc5 {[%clk 0:00:19]} 51. h4 {[%clk 0:01:20]}  gxh4 {[%clk 0:00:18]} 52. Kxh4 {[%clk 0:01:21]}  Bd4 {[%clk 0:00:19]} 53. Kg4 {[%clk 0:01:21]}  Bc5 {[%clk 0:00:20]} 54. Kf4 {[%clk 0:01:22]}  Bd4 {[%clk 0:00:20]} 55. Ke4 {[%clk 0:01:23]}  Bf2 {[%clk 0:00:20]} 56. Kd5 {[%clk 0:01:24]}  Bg1 {[%clk 0:00:21]} 57. c5 {[%clk 0:01:25]}  Ke7 {[%clk 0:00:20]} 58. b6 {[%clk 0:01:24]}  Bh2 {[%clk 0:00:20]} 59. c6 {[%clk 0:01:25]}  Kd8 {[%clk 0:00:20]} 60. c7+ {[%clk 0:01:26]}  Bxc7 {[%clk 0:00:19]} 61. bxc7+ {[%clk 0:01:27]}  Kxc7 {[%clk 0:00:20]} 62. f6 {[%clk 0:01:26]}  Kd8 {[%clk 0:00:21]} 63. Kd6 {[%clk 0:01:26]}  Ke8 {[%clk 0:00:21]} 64. f7+ {[%clk 0:01:22]}  Kf8 {[%clk 0:00:21]} 65. Kd7 {[%clk 0:01:23]}  Kg7 {[%clk 0:00:21]} 66. Ke7 {[%clk 0:01:24]}  Kg6 {[%clk 0:00:22]} 67. f8=Q {[%clk 0:01:23]} 1-0


[Site "https://www.chess.com"]

[Event "Titled Tuesday Blitz January 10 Early 2023"]
[White "Marin Ramirez, Gerardo"]
[Black "Krysa, Leandro"]
[WhiteFideId "3901068"]
[BlackFideId "116807"]
[WhiteElo "2127"]
[BlackElo "2541"]
[Result "0-1"]
[Round "02"]
[TimeControl "180+2"]
[Date "2023.01.10"]
[WhiteClock "0:00:01"]
[BlackClock "0:00:13"]

1. d4 {[%clk 0:02:56]}  d5 {[%clk 0:02:59]} 2. Nf3 {[%clk 0:02:54]}  Nf6 {[%clk 0:02:57]} 3. c4 {[%clk 0:02:52]}  c6 {[%clk 0:02:56]} 4. Nc3 {[%clk 0:02:46]}  dxc4 {[%clk 0:02:56]} 5. a4 {[%clk 0:02:42]}  Bf5 {[%clk 0:02:55]} 6. e3 {[%clk 0:02:43]}  e6 {[%clk 0:02:54]} 7. Bxc4 {[%clk 0:02:43]}  Bb4 {[%clk 0:02:54]} 8. O-O {[%clk 0:02:43]}  O-O {[%clk 0:02:54]} 9. Qe2 {[%clk 0:02:43]}  Nbd7 {[%clk 0:02:47]} 10. h3 {[%clk 0:02:35]}  Bg6 {[%clk 0:02:41]} 11. Bd2 {[%clk 0:02:28]}  a5 {[%clk 0:02:39]} 12. Na2 {[%clk 0:02:17]}  Bd6 {[%clk 0:02:29]} 13. Rfd1 {[%clk 0:02:10]}  Qe7 {[%clk 0:02:26]} 14. Nc3 {[%clk 0:02:05]}  e5 {[%clk 0:02:23]} 15. Nh4 {[%clk 0:01:41]}  exd4 {[%clk 0:02:14]} 16. Nxg6 {[%clk 0:01:41]}  hxg6 {[%clk 0:02:12]} 17. exd4 {[%clk 0:01:41]}  Qxe2 {[%clk 0:02:09]} 18. Bxe2 {[%clk 0:01:36]}  Nb6 {[%clk 0:02:08]} 19. Bf3 {[%clk 0:01:37]}  Rfd8 {[%clk 0:02:01]} 20. Bg5 {[%clk 0:01:35]}  Be7 {[%clk 0:01:42]} 21. Ne4 {[%clk 0:00:27]}  Nbd5 {[%clk 0:01:30]} 22. Nc5 {[%clk 0:00:18]}  Rab8 {[%clk 0:00:54]} 23. Bd2 {[%clk 0:00:15]}  Nb4 {[%clk 0:00:49]} 24. Bxb4 {[%clk 0:00:14]}  axb4 {[%clk 0:00:50]} 25. a5 {[%clk 0:00:12]}  Bxc5 {[%clk 0:00:38]} 26. dxc5 {[%clk 0:00:11]}  Nd7 {[%clk 0:00:38]} 27. a6 {[%clk 0:00:09]}  bxa6 {[%clk 0:00:37]} 28. Bxc6 {[%clk 0:00:06]}  Nxc5 {[%clk 0:00:35]} 29. Rxd8+ {[%clk 0:00:06]}  Rxd8 {[%clk 0:00:35]} 30. Ra5 {[%clk 0:00:06]}  Nd3 {[%clk 0:00:23]} 31. b3 {[%clk 0:00:05]}  Rd6 {[%clk 0:00:17]} 32. Rxa6 {[%clk 0:00:05]}  Nc5 {[%clk 0:00:17]} 33. Ra8+ {[%clk 0:00:03]}  Kh7 {[%clk 0:00:17]} 34. Ba4 {[%clk 0:00:02]}  Rd1+ {[%clk 0:00:13]} 35. Kh2 {[%clk 0:00:01]}  Ra1 {[%clk 0:00:13]} 0-1


[Site "https://www.chess.com"]

[Event "Titled Tuesday Blitz January 10 Early 2023"]
[White "Skvortsov, Andrei"]
[Black "Sailer, Mike"]
[WhiteFideId "24108600"]
[BlackFideId "2012901"]
[WhiteElo "2313"]
[BlackElo "2109"]
[Result "1-0"]
[Round "02"]
[TimeControl "180+2"]
[Date "2023.01.10"]
[WhiteClock "0:01:13"]
[BlackClock "0:00:11"]

1. c4 {[%clk 0:02:59]}  e6 {[%clk 0:02:58]} 2. Nc3 {[%clk 0:02:58]}  d5 {[%clk 0:02:58]} 3. cxd5 {[%clk 0:02:56]}  exd5 {[%clk 0:02:58]} 4. d4 {[%clk 0:02:56]}  Nf6 {[%clk 0:02:58]} 5. Bg5 {[%clk 0:02:50]}  Be7 {[%clk 0:02:58]} 6. e3 {[%clk 0:02:48]}  O-O {[%clk 0:02:56]} 7. Bd3 {[%clk 0:02:48]}  c6 {[%clk 0:02:54]} 8. Nge2 {[%clk 0:02:48]}  Bg4 {[%clk 0:02:53]} 9. O-O {[%clk 0:02:45]}  Nbd7 {[%clk 0:02:52]} 10. Qc2 {[%clk 0:02:40]}  Re8 {[%clk 0:02:50]} 11. f3 {[%clk 0:02:38]}  Bh5 {[%clk 0:02:50]} 12. Rae1 {[%clk 0:02:36]}  Nf8 {[%clk 0:02:42]} 13. Bh4 {[%clk 0:02:29]}  Bg6 {[%clk 0:02:39]} 14. Nf4 {[%clk 0:02:27]}  Bxd3 {[%clk 0:02:38]} 15. Nxd3 {[%clk 0:02:28]}  Ng6 {[%clk 0:02:30]} 16. Bf2 {[%clk 0:02:27]}  Bd6 {[%clk 0:02:30]} 17. e4 {[%clk 0:02:24]}  dxe4 {[%clk 0:02:21]} 18. fxe4 {[%clk 0:02:24]}  Ng4 {[%clk 0:02:07]} 19. e5 {[%clk 0:02:23]}  Nxf2 {[%clk 0:02:04]} 20. Qxf2 {[%clk 0:02:24]}  Bf8 {[%clk 0:01:46]} 21. Qxf7+ {[%clk 0:02:20]}  Kh8 {[%clk 0:01:46]} 22. Re4 {[%clk 0:02:19]}  c5 {[%clk 0:01:42]} 23. d5 {[%clk 0:02:11]}  c4 {[%clk 0:01:35]} 24. Nf4 {[%clk 0:02:10]}  Nxe5 {[%clk 0:01:27]} 25. Qf5 {[%clk 0:02:07]}  Bc5+ {[%clk 0:01:12]} 26. Kh1 {[%clk 0:02:06]}  Nd3 {[%clk 0:01:07]} 27. Ne6 {[%clk 0:02:02]}  Qf6 {[%clk 0:00:59]} 28. Qxf6 {[%clk 0:01:51]}  gxf6 {[%clk 0:00:59]} 29. Nxc5 {[%clk 0:01:50]}  Nxc5 {[%clk 0:00:57]} 30. Rxc4 {[%clk 0:01:49]}  Nd3 {[%clk 0:00:53]} 31. b3 {[%clk 0:01:39]}  Re3 {[%clk 0:00:41]} 32. g3 {[%clk 0:01:33]}  Rae8 {[%clk 0:00:40]} 33. Rxf6 {[%clk 0:01:25]}  Ne5 {[%clk 0:00:30]} 34. Rc7 {[%clk 0:01:18]}  Ng4 {[%clk 0:00:28]} 35. Rff7 {[%clk 0:01:16]}  Re1+ {[%clk 0:00:21]} 36. Kg2 {[%clk 0:01:16]}  Ne3+ {[%clk 0:00:22]} 37. Kh3 {[%clk 0:01:14]}  Re5 {[%clk 0:00:11]} 38. Rf8# {[%clk 0:01:13]} 1-0


[Site "https://www.chess.com"]